bitfinex/quotes_SOLUSD_20250612
["timestamp","ask_amount","ask_price","bid_price","bid_amount"]
[1749736923206,32.44389097,159.14,159.04,18.64964886]
[1749736923410,25.28538925,159.14,159.1,19.00149828]
[1749736923580,26.16,159.13,159.05,3.12991361]
[1749736923899,26.16,159.13,159.04,37.65114714]
[1749736924102,19.00149828,159.12,159.04,18.64964886]
[1749736924291,19.00149828,159.12,159.03,33.8556]
[1749736924292,19.00149828,159.11,159.07,19.00149828]
[1749736924476,26.16,159.13,159.03,33.8556]
[1749736924673,19.00149828,159.1,159.03,33.8556]
[1749736924995,51.4470176,159.1,159.05,19.00149828]
[1749736925298,32.44551932,159.1,159.06,19.00149828]
[1749736925497,32.44551932,159.1,159.05,19.00149828]
[1749736925498,51.4470176,159.1,159.05,19.00149828]
[1749736925675,19.00149828,159.09,159.03,27.6627]
[1749736925875,32.44551932,159.1,159.05,19.00149828]
[1749736926395,19.00149828,159.09,159.05,19.00149828]
[1749736926601,19.00149828,159.09,159.03,1.6627]
[1749736926602,19.00149828,159.08,159.03,1.6627]
[1749736926898,45.18149828,159.07,159.03,19.00149828]
[1749736927286,26.18,159.07,159.03,19.00149828]
[1749736927797,19.00149828,159.06,159.02,19.00149828]
[1749736928098,32.46662383,159.07,159.02,19.00149828]
[1749736928407,19.00149828,159.06,159.02,19.00149828]
[1749736928995,25.28847197,159.06,158.99,27.5842]
[1749736929198,25.28847197,159.06,159.01,19.00149828]
[1749736929797,19.00149828,159.04,159.0,19.00149828]
[1749736930000,45.16149828,159.04,159.0,19.00149828]
[1749736930304,45.16149828,159.04,158.99,46.58569828]
[1749736930798,26.16,159.04,159.0,19.00149828]
[1749736931584,26.16,159.04,159.01,19.00149828]
[1749736933099,26.16,159.04,158.99,27.5842]
[1749736933600,45.16149828,159.04,158.99,27.5842]
[1749736933792,45.16149828,159.04,159.0,19.00149828]
[1749736933992,26.16,159.04,159.0,19.00149828]
[1749736934188,26.16,159.04,159.01,19.00149828]
[1749736938706,51.44924812,159.04,158.99,1.5842]
[1749736938910,19.00149828,159.03,158.98,19.00149828]
[1749736939097,32.44774984,159.04,158.99,19.00149828]
[1749736939412,49.79043478,159.04,158.99,19.00149828]
[1749736939707,19.00149828,159.03,158.99,19.00149828]
[1749736940106,49.79043478,159.04,158.99,19.00149828]
[1749736941208,24.50118666,159.04,159.0,19.00149828]
[1749736941513,24.50118666,159.04,159.01,19.00149828]
[1749736941817,24.50118666,159.04,159.0,19.00149828]
[1749736942113,25.288986,159.05,159.0,19.00149828]
[1749736942301,26.12,159.04,159.01,19.00149828]
[1749736944013,26.12,159.04,158.97,18.64964886]
[1749736944308,26.12,159.04,159.0,19.00149828]
[1749736944502,26.12,159.04,159.01,19.00149828]
[1749736944905,26.12,159.04,159.0,19.00149828]
[1749736945412,26.12,159.04,159.01,19.00149828]
[1749736945618,26.12,159.04,158.97,18.64964886]
[1749736945619,149.1,159.06,159.03,19.00149828]
[1749736945794,149.1,159.06,159.04,19.00149828]
[1749736947801,149.1,159.06,159.03,19.00149828]
[1749736948517,149.1,159.06,159.04,19.00149828]
[1749736948903,149.1,159.06,159.0,26.0]
[1749736948904,149.1,159.06,159.05,19.00149828]
[1749736949108,149.1,159.06,159.01,18.64964886]
[1749736949320,149.1,159.06,159.0,1.5872]
[1749736949492,45.12149828,159.05,159.0,27.5872]
[1749736949693,26.12,159.05,158.96,1.6249]
[1749736949921,25.29014334,159.02,158.97,19.00149828]
[1749736950123,51.41014334,159.02,158.96,1.6249]
[1749736950417,51.41014334,159.02,158.98,19.00149828]
[1749736951012,51.41014334,159.02,158.96,1.6249]
[1749736951411,51.41014334,159.02,158.98,19.00149828]
[1749736951724,194.36365985,159.06,158.97,18.64964886]
[1749736952018,19.00149828,159.05,159.01,19.00149828]
[1749736952222,26.16,159.04,158.97,18.64964886]
[1749736952408,26.16,159.04,159.01,19.00149828]
[1749736953012,25.28897751,159.05,159.01,19.00149828]
[1749736953228,32.4677803,159.04,159.01,19.00149828]
[1749736953525,32.4677803,159.04,159.0,19.00149828]
[1749736953894,26.18,159.04,159.01,19.00149828]
[1749736954098,51.46927173,159.04,158.97,18.64964886]
[1749736954527,51.46927173,159.04,159.0,19.00149828]
[1749736954712,19.00149828,159.02,158.96,1.6249]
[1749736955022,26.18,159.02,158.99,19.00149828]
[1749736955923,26.18,159.02,159.0,19.00149828]
[1749736957026,26.18,159.02,158.99,19.00149828]
[1749736957201,32.46860081,159.02,158.99,19.00149828]
[1749736957824,32.46860081,159.02,158.96,1.6249]
[1749736958026,32.46860081,159.02,158.98,19.00149828]
[1749736958212,26.18,159.02,158.98,19.00149828]
[1749736958412,26.18,159.02,158.96,1.6249]
[1749736958413,26.18,159.02,158.99,19.00149828]
[1749736958728,26.18,159.02,158.96,1.6249]
[1749736958909,26.18,159.02,158.99,19.00149828]
[1749736959226,26.18,159.02,159.0,19.00149828]
[1749736959625,26.14,159.04,159.01,19.00149828]
[1749736959927,32.42744872,159.05,159.02,19.00149828]
[1749736960127,6.28744872,159.05,159.02,19.00149828]
[1749736960426,6.28744872,159.05,158.97,51.10884886]
[1749736960427,32.42744872,159.05,158.97,51.10884886]
[1749736960609,32.42744872,159.05,159.02,19.00149828]
[1749736961134,32.42744872,159.05,159.01,19.00149828]
[1749736961818,19.00149828,159.04,159.0,19.00149828]
[1749736962015,45.14149828,159.04,158.97,26.0]
[1749736962222,45.14149828,159.04,158.99,19.00149828]
[1749736962223,19.00149828,159.03,158.99,19.00149828]
[1749736962624,19.00149828,159.03,158.97,26.0]
[1749736962832,19.00149828,159.03,158.99,19.00149828]
[1749736963011,26.14,159.04,159.0,19.00149828]
[1749736963929,32.42786381,159.04,159.0,19.00149828]
[1749736964440,51.42936209,159.04,159.0,19.00149828]
[1749736966308,32.42786381,159.04,159.0,19.00149828]
[1749736967029,51.42936209,159.04,158.99,19.00149828]
[1749736967525,26.12,159.03,158.99,19.00149828]
[1749736969826,26.12,159.03,159.0,19.00149828]
[1749736970130,32.40813835,159.03,159.0,19.00149828]
[1749736970724,26.12,159.03,159.0,19.00149828]
[1749736971436,32.40814977,159.03,159.0,19.00149828]
[1749736972211,26.12,159.03,159.0,19.00149828]
[1749736973441,149.1,159.06,159.02,19.00149828]
[1749736973617,26.12,159.05,159.02,19.00149828]
[1749736976440,26.12,159.05,158.98,18.64964886]
[1749736976643,26.12,159.05,159.02,19.00149828]
[1749736978625,155.38708743,159.06,159.03,19.00149828]
[1749736978626,149.1,159.06,159.03,19.00149828]
[1749736978837,181.50702091,159.06,159.03,19.00149828]
[1749736979043,155.38702091,159.06,159.03,19.00149828]
[1749736979243,26.0,159.09,159.04,19.00149828]
[1749736979415,170.68734232,159.11,159.01,26.0]
[1749736979416,30.82635727,159.08,159.02,27.5762]
[1749736979748,6.28631928,159.08,159.04,19.00149828]
[1749736979941,56.11417483,159.08,159.04,19.00149828]
[1749736980241,19.00149828,159.07,159.02,27.5762]
[1749736980436,32.40631928,159.08,159.04,19.00149828]
[1749736980944,56.11293688,159.08,159.04,19.00149828]
[1749736981149,4.70547838,159.07,159.04,19.00149828]
[1749736981843,4.70547838,159.07,159.03,19.00149828]
[1749736982148,37.11227466,159.07,159.04,19.00149828]
[1749736984054,37.11227466,159.07,159.02,27.5762]
[1749736984238,37.11227466,159.07,159.04,19.00149828]
[1749736985031,32.40679628,159.07,159.04,19.00149828]
[1749736985254,37.11185752,159.07,159.04,19.00149828]
[1749736985432,56.1133558,159.07,159.02,27.5762]
[1749736985631,51.40829456,159.07,159.03,19.00149828]
[1749736986146,32.40679628,159.07,159.03,19.00149828]
[1749736986341,32.40679628,159.07,159.02,27.5762]
[1749736986542,37.1119593,159.07,159.04,19.00149828]
[1749736986961,37.1119593,159.07,159.02,27.5762]
[1749736987232,56.11345758,159.07,159.03,19.00149828]
[1749736987447,51.40829456,159.07,159.02,46.57769828]
[1749736987650,51.40829456,159.07,159.03,19.00149828]
[1749736988040,32.40679628,159.07,159.03,19.00149828]
[1749736988644,37.11206145,159.07,159.03,19.00149828]
[1749736990655,37.11206145,159.07,159.04,19.00149828]
[1749736990656,30.82526517,159.07,159.04,19.00149828]
[1749736990952,32.40662569,159.07,159.04,19.00149828]
[1749736991456,32.40662569,159.07,159.02,27.5762]
[1749736991748,32.40662569,159.07,159.04,19.00149828]
[1749736993944,26.12,159.06,159.04,19.00149828]
[1749736994251,26.12,159.06,159.02,1.5762]
[1749736994476,26.12,159.06,159.03,19.00149828]
[1749736994829,26.12,159.06,159.02,1.5762]
[1749736995032,26.12,159.06,159.02,20.57769828]
[1749736995265,26.12,159.06,159.02,1.5762]
[1749736995574,26.12,159.06,159.02,20.57769828]
[1749736995736,26.12,159.06,159.03,19.00149828]
[1749736996241,32.40713278,159.06,159.03,19.00149828]
[1749736996757,32.40713278,159.06,159.02,20.57769828]
[1749736996942,6.28713278,159.06,159.02,20.57769828]
[1749736997147,32.40713278,159.06,159.02,20.57769828]
[1749736999438,32.40713278,159.06,158.99,26.0]
[1749736999439,19.00149828,159.05,158.99,26.0]
[1749736999640,19.00149828,159.04,158.99,26.0]
[1749736999970,45.12149828,159.04,159.0,19.00149828]
[1749737000758,6.28812173,159.03,158.99,45.00149828]
[1749737001061,6.28812173,159.03,159.0,19.00149828]
[1749737001559,32.40789464,159.04,159.0,19.00149828]
[1749737001755,149.1,159.07,159.03,19.00149828]
[1749737001955,181.50660419,159.07,159.05,19.00149828]
[1749737002162,155.38660419,159.07,159.04,19.00149828]
[1749737002966,181.50660419,159.07,159.04,19.00149828]
[1749737003756,149.1,159.07,159.04,19.00149828]
[1749737004063,175.22,159.07,159.04,19.00149828]
[1749737005946,149.1,159.07,159.06,19.00149828]
[1749737008765,149.1,159.07,159.05,19.00149828]
[1749737009161,149.1,159.07,159.03,1.6124]
[1749737009345,149.1,159.07,159.05,19.00149828]
[1749737011045,175.22,159.07,159.05,19.00149828]
[1749737012065,175.22,159.07,159.03,1.6124]
[1749737012282,175.22,159.07,159.05,19.00149828]
[1749737014647,175.22,159.07,159.04,19.00149828]
[1749737015665,175.22,159.07,159.05,19.00149828]
[1749737016273,175.22,159.07,159.03,1.6124]
[1749737016575,175.22,159.07,159.04,19.00149828]
[1749737016951,181.50655655,159.07,159.04,19.00149828]
[1749737017158,181.50655655,159.07,159.03,19.00149828]
[1749737018149,200.50805483,159.07,159.03,19.00149828]
[1749737019168,181.50655655,159.07,159.03,19.00149828]
[1749737019563,181.50655655,159.07,159.0,44.64964886]
[1749737019771,181.50655655,159.07,159.03,19.00149828]
[1749737020858,181.50655655,159.07,159.0,44.64964886]
[1749737021081,181.50655655,159.07,159.03,19.00149828]
[1749737021585,181.50655655,159.07,159.0,44.64964886]
[1749737021771,181.50655655,159.07,159.03,19.00149828]
[1749737022577,181.50655655,159.07,159.04,19.00149828]
[1749737023698,200.50805483,159.07,159.0,44.64964886]
[1749737023895,181.50655655,159.07,159.0,26.0]
[1749737024057,149.1,159.1,159.04,1.6008]
[1749737024391,19.00149828,159.09,159.04,19.00149828]
[1749737024573,45.12149828,159.08,159.02,18.64964886]
[1749737024774,26.12,159.08,159.04,19.00149828]
[1749737024978,45.12149828,159.08,159.02,18.64964886]
[1749737025192,26.12,159.08,159.04,19.00149828]
[1749737026656,51.40778517,159.08,159.01,32.4803]
[1749737026862,19.00149828,159.07,159.02,19.00149828]
[1749737027059,26.1,159.06,159.02,19.00149828]
[1749737027378,26.1,159.06,159.03,19.00149828]
[1749737027755,26.1,159.07,159.03,19.00149828]
[1749737029082,32.38660974,159.07,159.01,26.0]
[1749737029268,32.38660974,159.07,159.03,19.00149828]
[1749737029461,32.38660974,159.07,159.01,26.0]
[1749737029663,51.38810802,159.07,159.02,19.00149828]
[1749737029880,19.00149828,159.04,159.0,1.6008]
[1749737030187,45.10149828,159.05,159.0,19.00149828]
[1749737030905,31.53127047,159.22,159.1,18.65547688]
[1749737031071,9.54666667,159.24,159.23,37.873972]
[1749737031270,64.97518525,159.29,159.27,44.64964886]
[1749737031479,64.97518525,159.29,159.28,18.64964886]
[1749737031685,0.08582082,159.36,159.31,26.0]
[1749737031879,0.08582082,159.36,159.35,19.00149828]
[1749737032376,0.08582082,159.36,159.35,4.66220372]
[1749737032566,0.08582082,159.36,159.35,28.32784636]
[1749737032768,0.08582082,159.36,159.35,9.32634808]
[1749737032980,27.04582082,159.36,159.35,9.32942242]
[1749737033185,0.08582082,159.36,159.35,9.32891191]
[1749737033495,0.08582082,159.36,159.35,4.66444351]
[1749737033701,0.08582082,159.36,159.35,9.32996802]
[1749737033872,0.08582082,159.36,159.35,9.33036994]
[1749737034068,0.08582082,159.36,159.35,4.66575086]
[1749737034276,0.08582082,159.36,159.35,9.33158478]
[1749737034474,0.08582082,159.36,159.35,9.33176591]
[1749737034675,0.08582082,159.36,159.35,4.66629789]
[1749737034898,0.37014396,159.36,159.35,9.33449154]
[1749737035081,0.37014396,159.36,159.35,9.33470048]
[1749737035274,0.37014396,159.36,159.35,9.33507348]
[1749737035474,0.37014396,159.36,159.35,9.3350749]
[1749737035994,6.64524436,159.36,159.35,4.66753675]
[1749737036174,32.36092122,159.36,159.35,4.55915328]
[1749737036369,18.933972,159.35,159.21,18.64964886]
[1749737036569,18.933972,159.35,159.29,19.00149828]
[1749737036772,18.933972,159.35,159.3,4.56060435]
[1749737037015,18.933972,159.35,159.31,4.56060435]
[1749737037016,26.0,159.32,159.31,4.56060435]
[1749737037196,26.0,159.32,159.31,4.56256639]
[1749737037395,26.0,159.32,159.31,4.56257654]
[1749737037705,57.51529081,159.32,159.31,4.56260748]
[1749737038007,53.38432314,159.32,159.31,4.56258176]
[1749737038207,64.07628982,159.32,159.27,31.51529081]
[1749737038623,27.08,159.31,159.28,4.56271207]
[1749737038795,27.08,159.31,159.27,31.51529081]
[1749737039001,27.08,159.31,159.28,4.5627007]
[1749737039194,27.08,159.31,159.29,4.56270142]
[1749737039415,0.28432314,159.31,159.3,4.56288385]
[1749737039587,58.85961395,159.31,159.3,4.56391762]
[1749737039787,58.85961395,159.31,159.3,4.56392533]
[1749737040097,58.85961395,159.31,159.3,4.56393619]
[1749737040304,6.2774639,159.3,159.24,31.51529081]
[1749737040492,27.06,159.29,159.25,31.51529081]
[1749737040692,31.79961395,159.28,159.26,4.54844011]
[1749737040914,27.04,159.27,159.23,31.51529081]
[1749737041090,27.04,159.27,159.25,31.51529081]
[1749737041296,27.04,159.27,159.26,4.55155673]
[1749737041616,27.04,159.27,159.24,31.51529081]
[1749737041906,27.04,159.27,159.25,4.55283641]
[1749737042113,27.04,159.27,159.2,31.51529081]
[1749737042114,31.79961395,159.26,159.2,31.51529081]
[1749737042312,31.79961395,159.26,159.21,4.55428908]
[1749737042313,31.51529081,159.24,159.21,4.55428908]
[1749737042526,33.29943485,159.25,159.22,4.55570592]
[1749737042527,27.04,159.23,159.22,4.55570592]
[1749737043090,27.04,159.23,159.22,4.55628189]
[1749737043294,27.04,159.23,159.2,31.51529081]
[1749737043488,27.04,159.23,159.21,4.55638723]
[1749737043807,27.04,159.23,159.22,4.55696432]
[1749737044108,58.83961395,159.23,159.22,4.55696432]
[1749737044307,0.28432314,159.22,159.18,31.51529081]
[1749737044500,27.0,159.21,159.19,4.55833973]
[1749737044698,27.0,159.21,159.18,31.51529081]
[1749737044699,27.0,159.21,159.2,4.55833945]
[1749737044898,27.0,159.21,159.2,4.55835815]
[1749737045107,27.0,159.21,159.18,31.51529081]
[1749737045306,27.0,159.21,159.19,4.55905472]
[1749737045601,27.0,159.21,159.2,4.55905157]
[1749737045816,26.98,159.21,159.2,4.55860385]
[1749737046014,26.98,159.21,159.17,31.51529081]
[1749737046312,6.28140703,159.2,159.18,4.58170678]
[1749737046500,26.98,159.19,159.16,31.51529081]
[1749737046814,26.98,159.19,159.17,36.09768749]
[1749737046990,26.98,159.19,159.18,4.5824024]
[1749737047189,26.98,159.19,159.18,4.58225497]
[1749737047426,26.98,159.19,159.18,4.58227786]
[1749737047628,26.98,159.19,159.18,4.58232365]
[1749737048122,26.98,159.19,159.18,36.09754594]
[1749737048304,6.28106367,159.21,159.18,31.51529081]
[1749737048625,26.98,159.2,159.19,36.09704535]
[1749737048795,26.98,159.2,159.19,36.0970843]
[1749737048998,26.98,159.2,159.19,4.58179349]
[1749737049411,0.28432314,159.24,159.19,36.09672136]
[1749737049734,26.96,159.23,159.2,4.58137382]
[1749737049913,26.96,159.23,159.19,31.51529081]
[1749737050290,31.51529081,159.24,159.2,4.58141824]
[1749737050291,33.22061801,159.22,159.2,4.58141824]
[1749737050490,6.56415232,159.24,159.21,36.09670905]
[1749737050717,1.6586,159.3,159.23,31.51529081]
[1749737050916,213.8331488,159.29,159.24,4.5801059]
[1749737051090,31.51529081,159.27,159.18,26.0]
[1749737051293,26.94,159.26,159.23,31.51529081]
[1749737051497,26.98,159.25,159.24,36.09352307]
[1749737051719,26.98,159.25,159.24,31.51529081]
[1749737051897,26.98,159.25,159.23,31.51529081]
[1749737052092,171.07250297,159.29,159.23,31.51529081]
[1749737052316,6.27864632,159.27,159.23,31.51529081]
[1749737052716,6.27864632,159.27,159.24,4.57918867]
[1749737053024,6.27864632,159.27,159.25,4.57883667]
[1749737053226,6.27864632,159.27,159.24,31.51529081]
[1749737053402,6.27864632,159.27,159.25,4.57888206]
[1749737053598,6.56296946,159.27,159.26,4.57864897]
[1749737053819,6.56296946,159.27,159.26,4.57865654]
[1749737054017,6.56296946,159.27,159.26,4.5786332]
[1749737054395,6.56296946,159.27,159.23,31.51529081]
[1749737054706,6.56296946,159.27,159.24,36.09422967]
[1749737054905,6.56296946,159.27,159.19,26.0]
[1749737055101,6.56296946,159.27,159.24,31.51529081]
[1749737055811,26.92,159.26,159.24,31.51529081]
[1749737056117,26.92,159.26,159.23,31.51529081]
[1749737056619,33.1992416,159.26,159.23,31.51529081]
[1749737056821,26.92,159.26,159.24,31.51529081]
[1749737057004,26.92,159.26,159.25,31.51529081]
[1749737057204,33.19906019,159.26,159.19,26.0]
[1749737057406,26.92,159.26,159.24,31.51529081]
[1749737059330,26.92,159.26,159.24,18.9153459]
[1749737059538,26.92,159.26,159.2,18.9153459]
[1749737059703,26.92,159.26,159.23,18.9153459]
[1749737060413,26.92,159.26,159.24,4.59307415]
[1749737060595,26.92,159.26,159.23,18.9153459]
[1749737060803,26.92,159.26,159.24,4.59322229]
[1749737061009,26.92,159.26,159.25,4.59322229]
[1749737061223,26.92,159.26,159.25,4.59314616]
[1749737061429,6.27877404,159.27,159.25,4.59314616]
[1749737061616,26.84,159.26,159.23,18.9153459]
[1749737061817,26.84,159.26,159.24,4.59312085]
[1749737062019,26.84,159.26,159.25,4.59312085]
[1749737062226,26.84,159.26,159.25,4.59221651]
[1749737062529,26.84,159.26,159.25,4.59176955]
[1749737062831,26.82,159.26,159.25,4.59176578]
[1749737063028,26.82,159.26,159.23,18.9153459]
[1749737063406,26.82,159.26,159.24,4.59091684]
[1749737063612,26.82,159.26,159.25,4.5909128]
[1749737063812,26.82,159.26,159.24,4.59091513]
[1749737064121,26.82,159.26,159.25,4.59092264]
[1749737064316,26.82,159.26,159.25,4.59091805]
[1749737064519,33.09906186,159.26,159.19,26.0]
[1749737064717,33.09906186,159.26,159.23,18.9153459]
[1749737064920,33.09906186,159.26,159.24,4.59176656]
[1749737065121,33.09906186,159.26,159.23,18.9153459]
[1749737065325,33.09906186,159.26,159.24,4.59126667]
[1749737065507,33.09906186,159.26,159.23,18.9153459]
[1749737065704,33.09906186,159.26,159.24,4.59119879]
[1749737065933,10.0,159.33,159.32,160.72375898]
[1749737066131,80.7653459,159.33,159.32,21.44452943]
[1749737066521,28.85,159.31,159.13,18.64964886]
[1749737066737,28.85,159.31,159.12,18.9153459]
[1749737066738,18.9153459,159.26,159.21,18.9153459]
[1749737066931,18.9153459,159.26,159.22,4.60657003]
[1749737067120,18.9153459,159.26,159.21,18.9153459]
[1749737067317,18.9153459,159.25,159.22,4.60668003]
[1749737067534,28.85,159.3,159.2,18.9153459]
[1749737067838,0.28432314,159.24,159.21,23.52268497]
[1749737068031,0.28432314,159.24,159.21,18.9153459]
[1749737068643,6.28022357,159.23,159.21,18.9153459]
[1749737069536,32.28022357,159.23,159.22,18.9153459]
[1749737070133,32.28022357,159.23,159.21,18.9153459]
[1749737070743,18.9153459,159.27,159.22,18.9153459]
[1749737070919,0.28432314,159.26,159.24,18.9153459]
[1749737071438,0.28432314,159.26,159.2,18.9153459]
[1749737071646,0.28432314,159.26,159.23,18.9153459]
[1749737072822,0.28432314,159.26,159.24,18.9153459]
[1749737073136,26.28432314,159.26,159.24,18.9153459]
[1749737073338,160.58051993,159.25,159.24,18.9153459]
[1749737073846,160.58051993,159.25,159.23,18.9153459]
[1749737074152,160.58051993,159.25,159.17,1.6052]
[1749737074153,160.58051993,159.25,159.2,18.9153459]
[1749737074336,160.58051993,159.25,159.24,18.9153459]
[1749737075322,160.58051993,159.25,159.2,18.9153459]
[1749737075323,6.27982918,159.24,159.17,1.6052]
[1749737075538,6.27982918,159.24,159.23,18.9153459]
[1749737075838,6.27982918,159.24,159.23,23.55976046]
[1749737076042,6.27982918,159.24,159.23,18.9153459]
[1749737076547,6.27982918,159.24,159.23,23.55971279]
[1749737076728,26.0,159.21,159.1,26.81184886]
[1749737076936,26.0,159.21,159.2,18.9153459]
[1749737077131,26.0,159.21,159.2,23.56197233]
[1749737077328,32.28101249,159.21,159.2,23.56194038]
[1749737077527,32.28101249,159.21,159.2,23.56195308]
[1749737077727,32.28101249,159.21,159.2,18.9153459]
[1749737077934,6.28022357,159.23,159.2,18.9153459]
[1749737078133,6.28022357,159.23,159.22,18.9153459]
[1749737078941,6.28022357,159.23,159.21,18.9153459]
[1749737079155,6.28022357,159.23,159.22,18.9153459]
[1749737080828,6.28022357,159.23,159.22,23.58310391]
[1749737081030,6.28022357,159.23,159.22,4.66761044]
[1749737081750,21.9807825,159.23,159.2,18.9153459]
[1749737081928,21.9807825,159.23,159.21,4.66773794]
[1749737082131,21.9807825,159.23,159.2,18.9153459]
[1749737082349,21.9807825,159.23,159.22,4.66774114]
[1749737082545,21.9807825,159.23,159.22,9.33515257]
[1749737082744,21.9807825,159.23,159.22,4.66774114]
[1749737082942,21.9807825,159.23,159.22,9.33498425]
[1749737084335,6.28022357,159.23,159.22,9.33498425]
[1749737084936,6.28022357,159.23,159.22,9.33663834]
[1749737085553,5.9361694,159.24,159.22,9.33701302]
[1749737085750,5.9361694,159.24,159.23,4.67060841]
[1749737085951,5.9361694,159.24,159.23,4.67113911]
[1749737086154,5.9361694,159.24,159.23,4.67114025]
[1749737086348,5.9361694,159.24,159.23,4.67116726]
[1749737086545,5.65184626,159.24,159.23,23.58547082]
[1749737086741,5.65184626,159.24,159.23,23.5855129]
[1749737086935,5.65184626,159.24,159.23,23.58573406]
[1749737087135,5.65184626,159.24,159.23,23.58563482]
[1749737087337,5.65184626,159.24,159.23,18.9153459]
[1749737087757,5.65184626,159.24,159.23,23.58487889]
[1749737088050,5.65184626,159.24,159.23,23.58549077]
[1749737088260,149.1,159.27,159.23,23.58549077]
[1749737088469,149.1,159.27,159.26,18.9153459]
[1749737088633,154.75089627,159.27,159.26,18.9153459]
[1749737089030,154.75089627,159.27,159.26,23.58305415]
[1749737089248,154.75089627,159.27,159.26,23.58278921]
[1749737089457,136.99773073,159.26,159.22,4.66774114]
[1749737089658,142.64901012,159.26,159.25,18.9153459]
[1749737090246,142.64901012,159.26,159.22,4.66774114]
[1749737090441,2.94493007,159.25,159.22,4.66774114]
[1749737091054,2.94493007,159.25,159.22,23.58308704]
[1749737091545,5.65184626,159.24,159.22,23.58308704]
[1749737094258,5.65184626,159.24,159.23,18.9153459]
[1749737095667,5.65184626,159.24,159.22,23.58308704]
[1749737096666,5.65184626,159.24,159.23,18.9153459]
[1749737097566,5.65149136,159.25,159.22,23.58308704]
[1749737099260,5.65149136,159.25,159.23,18.9153459]
[1749737100371,5.65149136,159.25,159.24,18.9153459]
[1749737102956,142.64901915,159.26,159.24,18.9153459]
[1749737103168,142.64901915,159.26,159.25,18.9153459]
[1749737103762,136.99773073,159.26,159.25,18.9153459]
[1749737104349,149.1,159.27,159.25,18.9153459]
[1749737104559,149.1,159.27,159.26,18.9153459]
[1749737105153,149.1,159.27,159.25,18.9153459]
[1749737105366,149.1,159.27,159.26,18.9153459]
[1749737105556,149.1,159.27,159.26,18.8412181]
[1749737105865,118.08238482,159.26,159.23,18.64964886]
[1749737106850,118.08238482,159.26,159.25,18.9153459]
[1749737107668,118.08238482,159.26,159.22,4.66774114]
[1749737107857,118.08238482,159.26,159.25,18.9153459]
[1749737108672,118.08238482,159.26,159.24,18.9153459]
[1749737108852,118.08238482,159.26,159.25,18.9153459]
[1749737109973,118.08238482,159.26,159.22,4.66774114]
[1749737110170,118.08238482,159.26,159.25,18.9153459]
[1749737110378,118.08238482,159.26,159.24,18.9153459]
[1749737110576,118.08238482,159.26,159.22,4.66774114]
[1749737110768,118.08238482,159.26,159.24,18.9153459]
[1749737111477,118.08238482,159.26,159.25,18.9153459]
[1749737112872,118.08238482,159.26,159.22,4.66774114]
[1749737113178,118.08238482,159.26,159.25,18.9153459]
[1749737114774,122.47771321,159.26,159.25,18.9153459]
[1749737115179,122.47771321,159.26,159.22,4.66774114]
[1749737115491,122.47771321,159.26,159.25,18.9153459]
[1749737116153,122.47771321,159.26,159.22,4.66774114]
[1749737116360,133.46603419,159.26,159.22,4.66774114]
[1749737116559,133.46603419,159.26,159.24,18.9153459]
[1749737118783,133.46603419,159.26,159.23,18.9153459]
[1749737119855,152.38138009,159.26,159.22,4.66774114]
[1749737120090,19.19966904,159.25,159.22,4.66774114]
[1749737120295,26.0,159.23,159.22,4.66774114]
[1749737120588,45.19966904,159.23,159.22,4.66774114]
[1749737120975,68.2454744,159.23,159.22,4.66774114]
[1749737121173,68.2454744,159.23,159.22,4.59361333]
[1749737121362,68.2454744,159.23,159.16,18.9153459]
[1749737121363,26.0,159.19,159.16,18.9153459]
[1749737122160,26.0,159.19,159.17,18.9153459]
[1749737122360,0.28432314,159.21,159.18,18.9153459]
[1749737122590,0.28432314,159.21,159.15,1.5231]
[1749737122766,0.28432314,159.21,159.17,18.9153459]
[1749737122980,4.39698492,159.2,159.17,18.9153459]
[1749737123374,15.38944723,159.2,159.17,18.9153459]
[1749737123578,15.38944723,159.2,159.16,18.9153459]
[1749737123899,0.28432314,159.19,159.15,20.4384459]
[1749737124092,0.28432314,159.19,159.15,1.5231]
[1749737124272,26.0,159.17,159.15,20.4384459]
[1749737124476,26.0,159.17,159.12,1.6159]
[1749737124797,26.0,159.17,159.15,18.9153459]
[1749737125373,3.7697914,159.16,159.15,18.9153459]
[1749737126691,3.76955456,159.17,159.15,18.9153459]
[1749737128489,3.76955456,159.17,159.12,1.6159]
[1749737128790,29.76955456,159.17,159.16,18.9153459]
[1749737129095,29.76955456,159.17,159.12,20.5312459]
[1749737129391,29.76955456,159.17,159.15,18.9153459]
[1749737129586,29.76955456,159.17,159.12,1.6159]